[Event "FIDE Womens Candidates 2024"]
[Site "Toronto"]
[Date "2024.04.04"]
[Round "1.1"]
[White "Goryachkina, Aleksandra"]
[Black "Lagno, Kateryna"]
[Result "1/2-1/2"]
[ECO "B51"]
[WhiteElo "2553"]
[BlackElo "2542"]
[Annotator "TA"]
[PlyCount "72"]
[EventDate "2024.04.02"]
[EventType "tourn"]
[EventCountry "CAN"]
[SourceTitle "playchess.com"]
[Source "ChessBase"]
[SourceQuality "1"]
[TimeControl "40/5400+30:1800+30"]

{[%evp 13,72,27,51,0,0,0,0,-14,0,-19,-7,-20,-16,-8,0,-14,0,0,0,-31,32,0,0,-33,0,-55,-25,-22,-16,-15,-12,-14,-18,-29,-17,-25,-29,-25,-20,-23,-20,-14,-8,-12,-12,-16,-17,-20,-8,-14,0,-13,-13,-54,-47,-57,0,-24,0,-59,0]} 1. e4 {[%emt 0:00:08]} c5 {[%emt 0:00:18]} 2. Nf3 {[%emt 0:00:22]} Nc6 {[%emt 0:00:13]} 3. Bb5 {[%emt 0:01:19]} d6 {[%emt 0:00:25]} 4. O-O {[%emt 0:02:02]} Bd7 {[%emt 0:01:23]} 5. Re1 {[%emt 0:01:04]} Nf6 {[%emt 0:00:23]} 6. c3 {[%emt 0:03:17]} a6 {[%emt 0:00:35]} 7. Bf1 {[%emt 0:01:43]} e5 {[%emt 0:00:37]} 8. Na3 {[%emt 0:13:14]} (8. h3 $14) 8... Be7 $11 {[%emt 0:04:30]} 9. Nc2 {[%emt 0:01:27][%cal Ba3c2,Bc2e3,Be3f5][%mdl 32]} O-O {[%emt 0:03:05]} 10. h3 {[%emt 0:04:32] The position is equal.} Re8 {[%emt 0:02:53]} 11. d3 {[%emt 0:06:08]} h6 {[%emt 0:10:09]} 12. Ne3 {[%emt 0:01:44]} Bf8 {[%emt 0:00:57]} 13. Nh2 {[%emt 0:03:23]} Be6 {[%emt 0:07:53]} 14. Qf3 {[%emt 0:02:30]} Ne7 {[%emt 0:15:48]} 15. Nhg4 {[%emt 0:03:49]} Nxg4 {[%emt 0:03:25]} 16. hxg4 {[%emt 0:00:51]} g6 {[%emt 0:00:24]} (16... Qd7 $15) 17. Nf5 {[%emt 0:14:00]} Kh7 {[%emt 0:08:01]} 18. Ng3 {[%emt 0:05:12]} Bg7 {[%emt 0:02:19]} 19. g5 {[%emt 0:05:24]} ({Better is} 19. Nf5 $11) 19... h5 {[%emt 0:02:11]} 20. Be2 {[%emt 0:01:50]} Rf8 {[%emt 0:03:46]} 21. Bd1 {[%emt 0:01:33]} Qd7 {[%emt 0:06:44]} 22. Bb3 {[%emt 0:02:34]} Bxb3 {[%emt 0:00:57]} 23. axb3 {[%emt 0:00:02]} Qe6 {[%emt 0:00:16]} 24. Qd1 {[%emt 0:02:15]} Rad8 {[%emt 0:05:37]} 25. Be3 {[%emt 0:00:30]} Nc6 {[%emt 0:00:16]} 26. Nf1 {[%emt 0:01:34]} f5 {[%emt 0:06:51]} 27. gxf6 {[%emt 0:01:14]} Qxf6 {[%emt 0:00:08]} 28. Qd2 {[%emt 0:03:43]} Qe6 {[%emt 0:00:18]} 29. Bg5 {[%emt 0:03:44]} Bf6 {[%emt 0:02:05]} 30. Bxf6 {[%emt 0:01:22]} Rxf6 {[%emt 0:00:04]} 31. Ne3 {[%emt 0:00:27]} Rdf8 {[%emt 0:03:19][%cal Of6f2]} 32. Re2 {[%emt 0:04:26]} R6f7 {[%emt 0:00:04][%cal Oc6d8]} ({Of course not} 32... Qxb3 $6 33. Nd5 a5 34. Ra3 $16 (34. Nxf6+ Rxf6 35. Qg5 Kg7 $14)) 33. Nd5 {[%emt 0:01:40]} Qg4 {[%emt 0:00:42]} 34. Ne3 {[%emt 0:00:34]} Qe6 {[%emt 0:00:04][%cal Oc6d8]} 35. Nd5 {[%emt 0:00:22]} Qg4 {[%emt 0:00:05]} 36. Ne3 {[%emt 0:00:21]} Qe6 {[%emt 0:00:04] Weighted Error Value: White=0.11 (very precise) /Black=0.12 (very precise) .  Mistake:       	White=1     	Black=2      Inaccurate:     	White=4     	Black=3      OK:         	White=12    	Black=16} ({Black should try} 36... Qh4 $15) 1/2-1/2

[Event "FIDE Womens Candidates 2024"]
[Site "Toronto"]
[Date "2024.04.04"]
[Round "1.4"]
[White "Vaishali, Rameshbabu"]
[Black "Koneru, Humpy"]
[Result "1/2-1/2"]
[ECO "C54"]
[WhiteElo "2475"]
[BlackElo "2546"]
[Annotator "TA"]
[PlyCount "82"]
[EventDate "2024.04.02"]
[EventType "tourn"]
[EventCountry "CAN"]
[SourceTitle "playchess.com"]
[Source "ChessBase"]
[SourceQuality "1"]
[TimeControl "40/5400+30:1800+30"]

{[%evp 10,82,33,25,48,25,28,25,43,12,24,27,19,3,26,13,14,26,21,19,27,14,17,11,11,3,17,4,0,0,0,0,0,-16,0,-19,-15,-14,0,-25,-30,-45,-34,-19,0,0,0,-12,-15,-15,-6,-7,0,0,0,0,0,0,0,0,0,0,0,0,0,0,0,0,0,0,0,0,0,0,0]} 1. e4 {[%emt 0:00:19]} e5 {[%emt 0:00:14]} 2. Nf3 {[%emt 0:00:05]} Nc6 {[%emt 0:00:13]} 3. Bc4 {[%emt 0:00:09]} Bc5 {[%emt 0:00:37]} 4. c3 {[%emt 0:01:02]} Nf6 {[%emt 0:00:43]} 5. d3 {[%emt 0:00:05]} h6 {[%emt 0:00:52]} 6. b4 {[%emt 0:00:20]} Be7 {[%emt 0:03:00]} 7. Nbd2 {[%emt 0:06:51]} O-O {[%emt 0:04:00]} 8. O-O {[%emt 0:05:49]} d5 {[%emt 0:09:41] White has an edge.} 9. Bb3 {[%emt 0:02:51]} a6 {[%emt 0:09:06]} 10. a3 {[%emt 0:15:30]} Be6 {[%emt 0:02:27]} 11. Re1 {[%emt 0:03:57]} b5 {[%emt 0:21:34]} 12. Bb2 {[%emt 0:11:15]} dxe4 {[%emt 0:04:12]} 13. dxe4 {[%emt 0:04:28]} Bxb3 {[%emt 0:00:44]} 14. Qxb3 {[%emt 0:00:46]} a5 {[%emt 0:01:30]} 15. Nf1 {[%emt 0:22:10]} Qc8 {[%emt 0:04:55]} 16. Ne3 {[%emt 0:05:52]} Qe6 {[%emt 0:07:47]} 17. Nd5 {[%emt 0:02:49]} Rfd8 {[%emt 0:03:28][%cal Rf6d5]} 18. Nxf6+ {[%emt 0:08:42]} Qxf6 {[%emt 0:08:57]} 19. Rad1 {[%emt 0:00:38]} Bd6 {[%emt 0:00:37]} 20. Rd5 {[%emt 0:03:44]} Rdb8 {[%emt 0:02:05]} 21. Red1 {[%emt 0:00:47]} Qe6 {[%emt 0:04:01] [#] ...Ne7 is the strong threat.} 22. Qc2 {[%emt 0:02:11]} Ne7 {[%emt 0:00:13]} 23. R5d3 {[%emt 0:00:46]} Nc8 {[%emt 0:01:44]} 24. Nd2 {[%emt 0:00:27][%cal Bf3d2,Bd2f1,Bf1e3,Be3c2][%mdl 32]} Nb6 {[%emt 0:00:30]} 25. Bc1 {[%emt 0:00:35]} Be7 {[%emt 0:02:12]} 26. Nf1 {[%emt 0:00:42]} Qc6 {[%emt 0:02:28] The position is equal.} 27. Ne3 {[%emt 0:00:18]} axb4 {[%emt 0:01:59]} (27... Qxe4 $2 {loses.} 28. Rd8+ Rxd8 29. Rxd8+ (29. Qxe4 Rdc8 $18) 29... Rxd8 30. Qxe4 $18) 28. cxb4 {[%emt 0:00:32]} Qxc2 {[%emt 0:00:50]} 29. Nxc2 {[%emt 0:00:02]} Rd8 {[%emt 0:00:40]} 30. Kf1 {[%emt 0:00:53]} Rxd3 {[%emt 0:02:04]} 31. Rxd3 {[%emt 0:00:02]} Rd8 {[%emt 0:00:50]} 32. Ke2 {[%emt 0:00:22]} Rxd3 {[%emt 0:00:12]} 33. Kxd3 $11 {[%emt 0:00:02][%mdl 4096] Endgame. KBN-KBN} Kf8 {[%emt 0:00:12]} 34. Be3 {[%emt 0:01:35]} Nc4 {[%emt 0:00:13]} 35. Kc3 {[%emt 0:00:39]} Ke8 {[%emt 0:00:52]} 36. f3 {[%emt 0:00:40]} h5 {[%emt 0:01:43]} 37. Ba7 {[%emt 0:00:22][%cal Oa3a4]} Nd6 {[%emt 0:00:51]} 38. Bc5 {[%emt 0:00:32]} Nb7 {[%emt 0:00:19]} 39. Ba7 {[%emt 0:00:36]} Nd6 {[%emt 0:00:25]} 40. Bc5 {[%emt 0:00:00]} Nb7 {[%emt 0:00:00]} 41. Ba7 {[%emt 0:00:24]} Nd6 {[%emt 0:00:11] Weighted Error Value: White=0.07 (flawless) /Black=0.04 (flawless) .  Inaccurate:     	White=1     	---        OK:         	White=7     	Black=18     Best:        	---       	Black=1} 1/2-1/2

[Event "FIDE Womens Candidates 2024"]
[Site "Toronto"]
[Date "2024.04.05"]
[Round "2.1"]
[White "Tan, Zhongyi"]
[Black "Vaishali, Rameshbabu"]
[Result "1-0"]
[ECO "B13"]
[WhiteElo "2521"]
[BlackElo "2475"]
[Annotator "TA"]
[PlyCount "67"]
[EventDate "2024.04.02"]
[EventType "tourn"]
[EventCountry "CAN"]
[SourceTitle "playchess.com"]
[Source "ChessBase"]
[SourceQuality "1"]
[TimeControl "40/5400+30:1800+30"]

{[%evp 9,67,-1,-10,-10,8,-14,-10,-4,-14,-8,0,-7,0,0,-7,-13,-14,-18,0,-2,8,0,13,4,4,2,9,12,8,10,12,8,11,14,12,12,10,4,4,11,11,4,11,12,35,22,88,83,131,110,110,86,890,885,1340,1318,2292,2249,2208,2116]} 1. d4 {[%emt 0:00:04]} Nf6 {[%emt 0:00:24]} 2. Nc3 {[%emt 0:00:09]} d5 {[%emt 0:00:07]} 3. Bf4 {[%emt 0:00:07]} c5 {[%emt 0:02:08]} 4. e3 {[%emt 0:00:14]} cxd4 {[%emt 0:02:35]} 5. exd4 {[%emt 0:00:07]} a6 {[%emt 0:00:03]} 6. Nf3 {[%emt 0:01:40]} Nc6 {[%emt 0:00:30]} 7. h3 {[%emt 0:01:38]} Bf5 {[%emt 0:17:40]} 8. Bd3 {[%emt 0:00:14] The position is equal.} Bxd3 {[%emt 0:00:30]} 9. Qxd3 {[%emt 0:00:08]} e6 {[%emt 0:00:06]} 10. O-O {[%emt 0:00:10]} Bd6 {[%emt 0:00:19]} 11. Bxd6 {[%emt 0:02:45]} Qxd6 {[%emt 0:00:03]} 12. Rfe1 {[%emt 0:01:09]} O-O {[%emt 0:02:05]} 13. a3 {[%emt 0:02:10]} Qc7 {[%emt 0:05:23]} 14. Na2 {[%emt 0:10:35]} Rac8 {[%emt 0:08:40]} 15. c3 {[%emt 0:00:20]} Ne4 {[%emt 0:02:17]} 16. Qe2 {[%emt 0:02:55]} Na5 {[%emt 0:07:39]} 17. Nb4 {[%emt 0:05:43]} Nb3 {[%emt 0:03:30]} 18. Rad1 {[%emt 0:01:04]} a5 {[%emt 0:00:22]} 19. Nd3 {[%emt 0:00:13]} a4 {[%emt 0:00:23]} 20. Nfe5 {[%emt 0:04:18]} Na5 {[%emt 0:05:41]} 21. f3 {[%emt 0:02:45]} Nd6 {[%emt 0:01:09]} 22. Nf4 {[%emt 0:07:32]} Nac4 {[%emt 0:01:15]} 23. Ned3 {[%emt 0:01:18]} Rfe8 {[%emt 0:13:15]} 24. Qf2 {[%emt 0:00:22]} Re7 {[%emt 0:06:19]} 25. Re2 {[%emt 0:00:26]} Rce8 {[%emt 0:02:48]} 26. Rde1 {[%emt 0:00:09]} b6 {[%emt 0:02:23]} 27. g4 {[%emt 0:03:48][%cal Bg2g4,Bg4g5][%mdl 32]} Nb5 {[%emt 0:02:48]} (27... Qd8 $11) 28. Qh4 $16 {[%emt 0:01:37][%cal Of4d5] Threatens to win with Nxd5!} Qd6 {[%emt 0:05:03]} ({Black should try} 28... Qd8) 29. Nh5 {[%emt 0:00:09]} f6 {[%emt 0:03:41] Repels Qg5} 30. g5 {[%emt 0:00:34]} f5 {[%emt 0:01:21][%mdl 8192] This costs Black the game.} (30... fxg5 $16 31. Qxg5 Rf7) 31. Rg2 $18 {[%emt 0:01:36] White is clearly winning.} Kh8 {[%emt 0:01:11]} 32. Ndf4 {[%emt 0:05:52][%cal Oh5f6] Intending Nf6! and mate.} e5 {[%emt 0:01:38] [#]} 33. Nf6 $1 {[%emt 0:00:23][%mdl 512]} gxf6 {[%emt 0:00:07]} 34. Ng6+ {[%emt 0:00:05] Weighted Error Value: White=0.05 (flawless) /Black=0.14 (very precise) .  Loses game:     	---       	Black=1      Mistake:       	---       	Black=2      Inaccurate:     	---       	Black=1      OK:         	White=13    	Black=7      Best:        	---       	Black=2} 1-0

[Event "FIDE Womens Candidates 2024"]
[Site "Toronto"]
[Date "2024.04.05"]
[Round "2.2"]
[White "Lagno, Kateryna"]
[Black "Koneru, Humpy"]
[Result "1/2-1/2"]
[ECO "C88"]
[WhiteElo "2542"]
[BlackElo "2546"]
[Annotator "TA"]
[PlyCount "75"]
[EventDate "2024.04.02"]
[EventType "tourn"]
[EventCountry "CAN"]
[SourceTitle "playchess.com"]
[Source "ChessBase"]
[SourceQuality "1"]
[TimeControl "40/5400+30:1800+30"]

{[%evp 17,75,37,44,14,12,24,46,6,23,27,36,40,80,79,79,39,29,35,31,31,25,28,31,26,66,66,66,68,72,72,77,77,73,65,70,71,58,0,0,0,0,0,0,0,0,0,0,0,0,0,0,0,0,0,0,0,0,0,0,0]} 1. e4 {[%emt 0:00:03]} e5 {[%emt 0:00:11]} 2. Nf3 {[%emt 0:00:07]} Nc6 {[%emt 0:00:12]} 3. Bb5 {[%emt 0:00:18][%cal Bf1b5,Bb5a4,Ba4b3][%mdl 32]} a6 {[%emt 0:00:17]} 4. Ba4 {[%emt 0:00:12]} Nf6 {[%emt 0:00:16]} 5. O-O {[%emt 0:00:42]} Be7 {[%emt 0:00:24]} 6. Re1 {[%emt 0:00:30]} b5 {[%emt 0:00:50]} 7. Bb3 {[%emt 0:00:05]} Bb7 {[%emt 0:00:10]} 8. d3 {[%emt 0:03:53]} O-O {[%emt 0:00:57]} 9. a4 {[%emt 0:04:49]} Re8 {[%emt 0:09:41]} 10. axb5 {[%emt 0:01:37]} axb5 {[%emt 0:00:13]} 11. Rxa8 {[%emt 0:00:04]} Bxa8 {[%emt 0:02:32]} 12. Na3 {[%emt 0:18:45] White is slightly better.} Bxa3 {[%emt 0:17:07]} 13. bxa3 {[%emt 0:00:05]} d5 {[%emt 0:01:23]} 14. exd5 {[%emt 0:13:11]} Nd4 {[%emt 0:05:09]} 15. Nxd4 {[%emt 0:06:20]} ({But not} 15. Nxe5 Nxb3 16. cxb3 Qxd5 $11) 15... exd4 {[%emt 0:00:08]} 16. Bg5 {[%emt 0:07:55]} Bxd5 {[%emt 0:11:29]} 17. Rxe8+ {[%emt 0:06:39]} Qxe8 {[%emt 0:01:20]} 18. Bxf6 {[%emt 0:00:14]} Bxb3 {[%emt 0:00:10]} 19. cxb3 {[%emt 0:01:01]} gxf6 $14 {[%emt 0:00:06][%mdl 4096] Endgame. KQ-KQ} 20. a4 {[%emt 0:00:10]} bxa4 {[%emt 0:17:08]} 21. bxa4 {[%emt 0:00:11]} Qc6 {[%emt 0:00:49]} 22. g3 {[%emt 0:12:59]} Qc3 {[%emt 0:04:21]} 23. Qg4+ {[%emt 0:01:16]} Kf8 {[%emt 0:00:48]} 24. Qf5 {[%emt 0:00:57][%csl LRf6,LRh7][%cal Oa4a5]} Qc1+ {[%emt 0:04:40]} 25. Kg2 {[%emt 0:00:05]} Qc6+ {[%emt 0:00:17]} 26. Qf3 {[%emt 0:02:03]} Qa6 {[%emt 0:00:36][%cal Oc7c5]} 27. Qf5 {[%emt 0:00:55]} (27. Qd1 $14) 27... Qc6+ $11 {[%emt 0:01:25] The position is equal.} 28. Kh3 {[%emt 0:01:42]} Qxa4 {[%emt 0:00:57]} 29. Qxf6 {[%emt 0:00:45]} Qd7+ {[%emt 0:01:29]} 30. g4 {[%emt 0:00:25]} Qd5 {[%emt 0:06:19]} 31. Kg3 {[%emt 0:00:42] Hoping for Qh8+.} c5 {[%emt 0:01:56]} 32. h4 {[%emt 0:08:38]} c4 {[%emt 0:02:46]} 33. dxc4 {[%emt 0:00:14]} Qxc4 {[%emt 0:00:05]} 34. Qd8+ {[%emt 0:02:21]} Kg7 {[%emt 0:00:06]} 35. Qg5+ {[%emt 0:00:12]} Kf8 {[%emt 0:00:17]} 36. Qd8+ {[%emt 0:01:26]} Kg7 {[%emt 0:00:06]} 37. Qg5+ {[%emt 0:00:50]} Kf8 {[%emt 0:00:06]} 38. Qd8+ {[%emt 0:00:04] Weighted Error Value: White=0.07 (flawless) /Black=0.06 (flawless) .  Mistake:       	White=1     	---        Inaccurate:     	White=2     	Black=2      OK:         	White=8     	Black=8      Best:        	White=2     	Black=7} 1/2-1/2

[Event "FIDE Womens Candidates 2024"]
[Site "Toronto"]
[Date "2024.04.05"]
[Round "2.4"]
[White "Goryachkina, Aleksandra"]
[Black "Muzychuk, Anna"]
[Result "1-0"]
[ECO "D14"]
[WhiteElo "2553"]
[BlackElo "2520"]
[Annotator "TA"]
[PlyCount "63"]
[EventDate "2024.04.02"]
[EventType "tourn"]
[EventCountry "CAN"]
[SourceTitle "playchess.com"]
[Source "ChessBase"]
[SourceQuality "1"]
[TimeControl "40/5400+30:1800+30"]

{[%evp 14,63,7,9,6,-5,-14,-13,-14,-4,0,0,0,-33,0,0,0,0,0,0,0,0,0,0,0,0,0,0,-13,-16,22,-4,6,0,3,0,0,0,142,56,165,169,258,249,466,322,394,393,407,400,409,401]} 1. d4 {[%emt 0:00:08]} d5 {[%emt 0:00:06]} 2. c4 {[%emt 0:00:11]} c6 {[%emt 0:00:08]} 3. cxd5 {[%emt 0:00:30]} cxd5 {[%emt 0:00:11]} 4. Bf4 {[%emt 0:00:29]} Nc6 {[%emt 0:00:17]} 5. e3 {[%emt 0:00:38]} Nf6 {[%emt 0:00:25]} 6. Nc3 {[%emt 0:00:42]} Bf5 {[%emt 0:00:34]} 7. Nf3 {[%emt 0:01:39]} e6 {[%emt 0:01:01]} 8. Ne5 {[%emt 0:00:51]} Nxe5 {[%emt 0:13:51]} 9. dxe5 {[%emt 0:00:26]} Nd7 {[%emt 0:00:05]} 10. e4 {[%emt 0:00:40]} dxe4 {[%emt 0:01:14] The position is equal.} 11. Bb5 {[%emt 0:00:47]} a6 {[%emt 0:15:32]} 12. Bxd7+ {[%emt 0:05:19]} Qxd7 {[%emt 0:00:01]} 13. Qxd7+ {[%emt 0:00:40]} Kxd7 {[%emt 0:00:01]} 14. Na4 {[%emt 0:01:26] Threatens to win with Nb6+.} Rb8 {[%emt 0:23:04]} 15. Rd1+ {[%emt 0:25:29]} Ke8 {[%emt 0:02:53]} 16. Be3 {[%emt 0:07:57]} Bg4 {[%emt 0:23:27]} 17. Rc1 {[%emt 0:02:28]} Bb4+ {[%emt 0:06:23]} 18. Bd2 {[%emt 0:02:46]} Be7 {[%emt 0:00:06]} 19. h3 {[%emt 0:07:41]} Bh5 {[%emt 0:00:06]} 20. O-O {[%emt 0:09:32]} Be2 {[%emt 0:05:28]} 21. Rfe1 {[%emt 0:00:45]} Bd3 {[%emt 0:00:07]} 22. Be3 {[%emt 0:08:30][%mdl 1024] White has compensation.} b5 {[%emt 0:03:53]} 23. Nb6 {[%emt 0:09:14]} f5 {[%emt 0:00:17][%cal Of5f4]} 24. Rc6 {[%emt 0:02:35]} Kf7 {[%emt 0:00:18]} 25. Rec1 {[%emt 0:00:48]} Rb7 {[%emt 0:01:57] [#]} (25... Bd8 $11) 26. Nc8 {[%emt 0:02:53]} (26. Rc7 $1 $16 {[%cal Rc7b7]} Rxc7 27. Rxc7) 26... Rd7 {[%emt 0:01:31] [#]} (26... Bb4 $14) 27. Rc7 $1 $18 {[%emt 0:01:31]} ({Don't take} 27. Rxa6 $6 h6 $14) 27... Rhd8 {[%emt 0:00:27]} (27... Rxc7 {was worth a try.} 28. Rxc7 Rxc8 29. Rxc8 g5) 28. Nxe7 {[%emt 0:00:38]} Bc4 $2 {[%emt 0:00:26]} (28... Kxe7 29. Bg5+ Ke8) 29. Rxd7 {[%emt 0:01:05]} Rxd7 {[%emt 0:00:01]} 30. Nc8 {[%emt 0:00:34] White is winning.} Bxa2 {[%emt 0:00:09]} 31. Nd6+ {[%emt 0:00:15]} Kg6 {[%emt 0:00:03]} 32. Ra1 {[%emt 0:00:28] Weighted Error Value: White=0.12 (very precise) /Black=0.36.  Mistake:       	White=1     	Black=4      Inaccurate:     	White=2     	Black=2      OK:         	White=14    	Black=9      Best:        	White=1     	Black=1      Strong:       	White=1     	---} 1-0

[Event "FIDE Womens Candidates 2024"]
[Site "Toronto"]
[Date "2024.04.06"]
[Round "3.4"]
[White "Vaishali, Rameshbabu"]
[Black "Salimova, Nurgyul"]
[Result "1-0"]
[ECO "C42"]
[WhiteElo "2475"]
[BlackElo "2432"]
[Annotator "TA"]
[PlyCount "65"]
[EventDate "2024.04.02"]
[EventType "tourn"]
[EventCountry "CAN"]
[SourceTitle "playchess.com"]
[Source "ChessBase"]
[SourceQuality "1"]
[TimeControl "40/5400+30:1800+30"]

{[%evp 13,65,14,0,16,16,7,24,0,29,0,48,40,30,0,0,0,0,0,0,0,164,41,391,342,325,226,222,229,224,220,212,220,223,225,378,380,357,378,366,318,562,552,463,311,313,313,312,315,340,343,377,349,356,356]} 1. e4 {[%emt 0:00:24]} e5 {[%emt 0:00:11]} 2. Nf3 {[%emt 0:00:05]} Nf6 {[%emt 0:00:13]} 3. Nxe5 {[%emt 0:00:10]} d6 {[%emt 0:00:11]} 4. Nf3 {[%emt 0:00:06]} Nxe4 {[%emt 0:00:18]} 5. Nc3 {[%emt 0:00:17]} Nxc3 {[%emt 0:00:37]} 6. dxc3 {[%emt 0:00:03]} Be7 {[%emt 0:00:20]} 7. Be3 {[%emt 0:00:10]} O-O {[%emt 0:02:22]} 8. Qd2 {[%emt 0:00:11]} Nd7 {[%emt 0:01:26]} 9. O-O-O {[%emt 0:00:32]} Nf6 {[%emt 0:03:06]} 10. Bd4 {[%emt 0:00:50] White has an edge.} Bd7 {[%emt 0:25:38]} 11. h4 {[%emt 0:22:54]} Re8 {[%emt 0:26:13]} (11... Ng4 $11) 12. Ng5 $14 {[%emt 0:15:51] aiming for Bc4.} h6 {[%emt 0:02:45] [#]} 13. Bd3 $1 {[%emt 0:08:09][%cal Of2f3]} Ng4 {[%emt 0:14:34]} (13... hxg5 $6 14. hxg5 $16) 14. Nxf7 {[%emt 0:31:18]} Kxf7 {[%emt 0:00:06]} 15. Bc4+ $1 {[%emt 0:00:03]} Kf8 {[%emt 0:00:24][%cal Oe7f6] Hoping for ...Bf6!} 16. Qd3 {[%emt 0:00:06]} Bg5+ $2 {[%emt 0:11:10]} 17. Kb1 {[%emt 0:04:41]} (17. hxg5 $18 {Threatens to win with Qf3+.} Qxg5+ 18. Kb1) 17... Ne5 {[%emt 0:00:40][%mdl 8192] Prevents Qf3+. This costs Black the game.} (17... Bxh4 $2 18. Qg6 Re7 19. Qh7 $18 (19. Rxh4 Qe8 $18)) ({Black should play} 17... Bf6 $14 18. Qh7 Be6 (18... Bxh4 19. Qxg7#) 19. Bxe6 Rxe6) 18. Bxe5 {[%emt 0:04:36][%cal Od3g6] Qg6! would now be deadly.} Bf6 {[%emt 0:05:04] [#]} 19. Bxd6+ $40 {[%emt 0:05:28][%mdl 640] Black is in trouble.} cxd6 {[%emt 0:00:06]} 20. Qxd6+ {[%emt 0:00:04]} Qe7 {[%emt 0:00:38]} (20... Re7 $2 21. Qd5 Re6 22. Qxb7 $18 (22. Qxd7 Qxd7 23. Rxd7 Re7 $18)) 21. Qxd7 {[%emt 0:00:09]} Qxd7 {[%emt 0:00:25]} 22. Rxd7 {[%emt 0:00:03] And now Rf7+ would win.} Re4 {[%emt 0:00:25]} 23. Bd5 {[%emt 0:00:47]} Re2 {[%emt 0:00:28]} (23... Re7 24. Rxe7 (24. Rxb7 Rxb7 25. Bxb7 Rb8 $18) (24. Bxb7 Rb8 $18) 24... Kxe7) 24. Rf7+ $18 {[%emt 0:00:40]} ({Don't take} 24. Rxb7 Rd8 25. c4 Bxh4 26. Rxa7 (26. Rf7+ Ke8 $18) 26... Rd6 $18) 24... Ke8 {[%emt 0:00:05]} 25. Rxb7 {[%emt 0:00:10]} Rd8 {[%emt 0:01:28]} 26. Bc4 {[%emt 0:00:53]} Red2 {[%emt 0:00:29]} (26... Re7) 27. Re1+ {[%emt 0:01:25]} (27. Rxa7 $2 {is a self mate.} Rd1+ 28. Rxd1 Rxd1#) 27... Kf8 {[%emt 0:00:05]} 28. Kc1 {[%emt 0:00:31] Repels Rd1+} (28. Rxa7 $2 {leads to mate.} Rd1+ 29. Rxd1 Rxd1#) 28... R2d7 {[%emt 0:01:24]} 29. Rxd7 {[%emt 0:00:07]} Rxd7 {[%emt 0:00:04]} 30. g3 {[%emt 0:00:15]} Be7 {[%emt 0:00:14]} 31. h5 {[%emt 0:01:26]} Bc5 {[%emt 0:00:11]} 32. Re5 {[%emt 0:00:37]} Bb6 {[%emt 0:00:31]} 33. a4 {[%emt 0:00:33] Weighted Error Value: White=0.31/Black=0.63.  Loses game:     	---       	Black=2      Mistake:       	White=1     	Black=3      Inaccurate:     	White=4     	Black=1      OK:         	White=12    	Black=6      Best:        	---       	Black=4      Strong:       	White=1     	---} 1-0